[Event "Titled Tuesday Blitz December 20 Early 2022"]
[White "McCarthyStone"]
[Black "Alex_Sahakyan2006"]
[WhiteElo "2471"]
[BlackElo "2611"]
[Result "1-0"]
[Round "05"]
[TimeControl "180+2"]
[Date "2022.12.20"]
[WhiteClock "0:00:11"]
[BlackClock "0:00:07"]

1. e4 {[%clk 0:02:29]}  c5 {[%clk 0:02:56]} 2. g3 {[%clk 0:02:28]}  d5 {[%clk 0:02:54]} 3. exd5 {[%clk 0:02:28]}  Qxd5 {[%clk 0:02:55]} 4. Nf3 {[%clk 0:02:29]}  Bg4 {[%clk 0:02:54]} 5. Bg2 {[%clk 0:02:29]}  Qe6+ {[%clk 0:02:36]} 6. Kf1 {[%clk 0:02:30]}  Nc6 {[%clk 0:02:32]} 7. d3 {[%clk 0:02:29]}  Nf6 {[%clk 0:02:25]} 8. h3 {[%clk 0:02:29]}  Bh5 {[%clk 0:02:24]} 9. Na3 {[%clk 0:02:29]}  Qd7 {[%clk 0:02:23]} 10. Nc4 {[%clk 0:02:29]}  e6 {[%clk 0:02:23]} 11. g4 {[%clk 0:02:29]}  Bg6 {[%clk 0:02:23]} 12. Bf4 {[%clk 0:02:28]}  Nd5 {[%clk 0:02:05]} 13. Bg3 {[%clk 0:02:25]}  f6 {[%clk 0:01:59]} 14. Qe2 {[%clk 0:02:20]}  O-O-O {[%clk 0:01:56]} 15. a4 {[%clk 0:02:16]}  e5 {[%clk 0:01:41]} 16. a5 {[%clk 0:02:12]}  Bf7 {[%clk 0:01:25]} 17. Kg1 {[%clk 0:01:59]}  Nf4 {[%clk 0:01:06]} 18. Bxf4 {[%clk 0:01:57]}  exf4 {[%clk 0:01:07]} 19. Qe4 {[%clk 0:01:49]}  g5 {[%clk 0:01:03]} 20. a6 {[%clk 0:01:49]}  Bd5 {[%clk 0:00:57]} 21. axb7+ {[%clk 0:01:49]}  Kxb7 {[%clk 0:00:56]} 22. Qe1 {[%clk 0:01:46]}  h5 {[%clk 0:00:46]} 23. Qc3 {[%clk 0:01:24]}  hxg4 {[%clk 0:00:43]} 24. hxg4 {[%clk 0:01:04]}  Rxh1+ {[%clk 0:00:42]} 25. Kxh1 {[%clk 0:01:04]}  Bg7 {[%clk 0:00:38]} 26. Qb3+ {[%clk 0:00:42]}  Kc8 {[%clk 0:00:28]} 27. Qb5 {[%clk 0:00:37]}  Rh8+ {[%clk 0:00:19]} 28. Kg1 {[%clk 0:00:37]}  Qxg4 {[%clk 0:00:19]} 29. Nd6+ {[%clk 0:00:23]}  Kd7 {[%clk 0:00:16]} 30. Ne4 {[%clk 0:00:20]}  Bxe4 {[%clk 0:00:08]} 31. dxe4 {[%clk 0:00:21]}  Rc8 {[%clk 0:00:07]} 32. Rxa7+ {[%clk 0:00:18]}  Rc7 {[%clk 0:00:05]} 33. Qd3+ {[%clk 0:00:16]}  Kc8 {[%clk 0:00:04]} 34. Ra8+ {[%clk 0:00:10]}  Nb8 {[%clk 0:00:03]} 35. Qa6+ {[%clk 0:00:10]}  Rb7 {[%clk 0:00:04]} 36. Qc6+ {[%clk 0:00:07]}  Rc7 {[%clk 0:00:04]} 37. Qe8+ {[%clk 0:00:07]}  Kb7 {[%clk 0:00:05]} 38. Rxb8+ {[%clk 0:00:07]}  Ka7 {[%clk 0:00:05]} 39. Ra8+ {[%clk 0:00:07]}  Kb7 {[%clk 0:00:05]} 40. Qb8+ {[%clk 0:00:07]}  Kc6 {[%clk 0:00:06]} 41. Ra6+ {[%clk 0:00:04]}  Kd7 {[%clk 0:00:07]} 42. Qb5+ {[%clk 0:00:04]}  Ke7 {[%clk 0:00:06]} 43. Rc6 {[%clk 0:00:03]}  Rxc6 {[%clk 0:00:05]} 44. Qxc6 {[%clk 0:00:04]}  Kf7 {[%clk 0:00:05]} 45. Qd5+ {[%clk 0:00:04]}  Kg6 {[%clk 0:00:05]} 46. Qxc5 {[%clk 0:00:05]}  Kh6 {[%clk 0:00:03]} 47. Qf5 {[%clk 0:00:06]}  Qxf5 {[%clk 0:00:04]} 48. exf5 {[%clk 0:00:06]}  g4 {[%clk 0:00:05]} 49. Nh2 {[%clk 0:00:07]}  Kg5 {[%clk 0:00:05]} 50. Be4 {[%clk 0:00:07]}  Bf8 {[%clk 0:00:04]} 51. c3 {[%clk 0:00:07]}  f3 {[%clk 0:00:03]} 52. Nf1 {[%clk 0:00:06]}  Kf4 {[%clk 0:00:03]} 53. Ng3 {[%clk 0:00:07]}  Bd6 {[%clk 0:00:02]} 54. b4 {[%clk 0:00:07]}  Be5 {[%clk 0:00:02]} 55. c4 {[%clk 0:00:07]}  Bc3 {[%clk 0:00:03]} 56. b5 {[%clk 0:00:07]}  Bd4 {[%clk 0:00:03]} 57. Kf1 {[%clk 0:00:07]}  Ke5 {[%clk 0:00:04]} 58. Bd3 {[%clk 0:00:07]}  Kf4 {[%clk 0:00:04]} 59. Ne4 {[%clk 0:00:08]}  Be5 {[%clk 0:00:04]} 60. c5 {[%clk 0:00:08]}  Kxf5 {[%clk 0:00:04]} 61. b6 {[%clk 0:00:08]}  Kf4 {[%clk 0:00:04]} 62. c6 {[%clk 0:00:09]}  f5 {[%clk 0:00:04]} 63. c7 {[%clk 0:00:09]}  fxe4 {[%clk 0:00:04]} 64. Bxe4 {[%clk 0:00:10]}  g3 {[%clk 0:00:04]} 65. fxg3+ {[%clk 0:00:10]}  Kxe4 {[%clk 0:00:04]} 66. c8=Q {[%clk 0:00:10]}  Bxg3 {[%clk 0:00:05]} 67. b7 {[%clk 0:00:10]}  Bf4 {[%clk 0:00:06]} 68. Qc4+ {[%clk 0:00:09]}  Kf5 {[%clk 0:00:06]} 69. Qxf4+ {[%clk 0:00:10]}  Kxf4 {[%clk 0:00:07]} 70. b8=Q+ {[%clk 0:00:11]} 1-0


[Site "https://www.chess.com"]

[Event "Titled Tuesday Blitz December 20 Early 2022"]
[White "Meri-Arabidze"]
[Black "Arora, Tashika"]
[BlackFideId "459305"]
[WhiteElo "2730"]
[BlackElo "1896"]
[Result "0-1"]
[Round "05"]
[TimeControl "180+2"]
[Date "2022.12.20"]
[WhiteClock "0:00:01"]
[BlackClock "0:00:13"]

1. Nf3 {[%clk 0:02:55]}  Nf6 {[%clk 0:02:58]} 2. g3 {[%clk 0:02:56]}  d5 {[%clk 0:02:56]} 3. Bg2 {[%clk 0:02:56]}  Bf5 {[%clk 0:02:53]} 4. O-O {[%clk 0:02:56]}  e6 {[%clk 0:02:53]} 5. d3 {[%clk 0:02:57]}  h6 {[%clk 0:02:53]} 6. b3 {[%clk 0:02:57]}  c5 {[%clk 0:02:51]} 7. Bb2 {[%clk 0:02:58]}  Nc6 {[%clk 0:02:51]} 8. c4 {[%clk 0:02:55]}  d4 {[%clk 0:02:45]} 9. a3 {[%clk 0:02:53]}  a5 {[%clk 0:02:44]} 10. Nbd2 {[%clk 0:02:52]}  Be7 {[%clk 0:02:43]} 11. Nh4 {[%clk 0:02:41]}  Bh7 {[%clk 0:02:41]} 12. b4 {[%clk 0:02:37]}  cxb4 {[%clk 0:02:26]} 13. axb4 {[%clk 0:02:37]}  Bxb4 {[%clk 0:02:20]} 14. Nb3 {[%clk 0:02:37]}  e5 {[%clk 0:02:11]} 15. f4 {[%clk 0:02:36]}  Ng4 {[%clk 0:02:01]} 16. fxe5 {[%clk 0:02:12]}  Ne3 {[%clk 0:01:56]} 17. Qc1 {[%clk 0:02:07]}  Nxf1 {[%clk 0:01:48]} 18. Qxf1 {[%clk 0:02:07]}  O-O {[%clk 0:01:40]} 19. Bd5 {[%clk 0:01:50]}  a4 {[%clk 0:01:30]} 20. Nxd4 {[%clk 0:01:48]}  a3 {[%clk 0:01:30]} 21. Bxa3 {[%clk 0:01:07]}  Rxa3 {[%clk 0:01:21]} 22. Rxa3 {[%clk 0:00:58]}  Bxa3 {[%clk 0:01:22]} 23. Ndf5 {[%clk 0:00:51]}  Nxe5 {[%clk 0:01:17]} 24. Qf4 {[%clk 0:00:45]}  Ng6 {[%clk 0:01:06]} 25. Qg4 {[%clk 0:00:45]}  Kh8 {[%clk 0:00:44]} 26. Nf3 {[%clk 0:00:43]}  Bb2 {[%clk 0:00:41]} 27. d4 {[%clk 0:00:32]}  b5 {[%clk 0:00:37]} 28. h4 {[%clk 0:00:24]}  bxc4 {[%clk 0:00:35]} 29. Bxc4 {[%clk 0:00:25]}  Qf6 {[%clk 0:00:30]} 30. e4 {[%clk 0:00:20]}  Ne7 {[%clk 0:00:28]} 31. Nxe7 {[%clk 0:00:09]}  Qxe7 {[%clk 0:00:29]} 32. e5 {[%clk 0:00:09]}  Qb4 {[%clk 0:00:22]} 33. Bd5 {[%clk 0:00:07]}  Qc3 {[%clk 0:00:19]} 34. Kg2 {[%clk 0:00:06]}  Qc2+ {[%clk 0:00:18]} 35. Kg1 {[%clk 0:00:04]}  Bc1 {[%clk 0:00:17]} 36. h5 {[%clk 0:00:01]}  Be3+ {[%clk 0:00:16]} 37. Kh1 {[%clk 0:00:01]}  Qf5 {[%clk 0:00:15]} 38. Qh4 {[%clk 0:00:01]}  Rb8 {[%clk 0:00:13]} 0-1


[Site "https://www.chess.com"]

[Event "Titled Tuesday Blitz December 20 Early 2022"]
[White "Mikhail_Bryakin"]
[Black "Pitcher, John"]
[BlackFideId "411485"]
[WhiteElo "2765"]
[BlackElo "2210"]
[Result "1-0"]
[Round "05"]
[TimeControl "180+2"]
[Date "2022.12.20"]
[WhiteClock "0:00:29"]
[BlackClock "0:00:03"]

1. e4 {[%clk 0:03:00]}  c6 {[%clk 0:02:56]} 2. d4 {[%clk 0:02:57]}  d5 {[%clk 0:02:56]} 3. Nc3 {[%clk 0:02:57]}  dxe4 {[%clk 0:02:56]} 4. Nxe4 {[%clk 0:02:57]}  Bf5 {[%clk 0:02:57]} 5. Ng3 {[%clk 0:02:57]}  Bg6 {[%clk 0:02:57]} 6. h4 {[%clk 0:02:57]}  h6 {[%clk 0:02:57]} 7. Nf3 {[%clk 0:02:57]}  Nd7 {[%clk 0:02:56]} 8. h5 {[%clk 0:02:58]}  Bh7 {[%clk 0:02:57]} 9. Bd3 {[%clk 0:02:58]}  Bxd3 {[%clk 0:02:57]} 10. Qxd3 {[%clk 0:02:53]}  e6 {[%clk 0:02:58]} 11. Bd2 {[%clk 0:02:50]}  Ngf6 {[%clk 0:02:57]} 12. O-O-O {[%clk 0:02:50]}  Be7 {[%clk 0:02:58]} 13. Kb1 {[%clk 0:02:42]}  Qb6 {[%clk 0:02:57]} 14. Ne4 {[%clk 0:02:38]}  Rd8 {[%clk 0:02:54]} 15. c4 {[%clk 0:02:25]}  O-O {[%clk 0:02:37]} 16. Bc3 {[%clk 0:02:21]}  Qa6 {[%clk 0:02:27]} 17. g4 {[%clk 0:01:53]}  Nxe4 {[%clk 0:02:14]} 18. Qxe4 {[%clk 0:01:52]}  Qxc4 {[%clk 0:02:14]} 19. g5 {[%clk 0:01:53]}  Qd5 {[%clk 0:02:06]} 20. Qg4 {[%clk 0:01:11]}  Bxg5 {[%clk 0:01:39]} 21. Nxg5 {[%clk 0:01:10]}  Qxg5 {[%clk 0:01:35]} 22. Qe2 {[%clk 0:01:11]}  Nf6 {[%clk 0:01:28]} 23. Rdg1 {[%clk 0:01:04]}  Qf5+ {[%clk 0:01:27]} 24. Ka1 {[%clk 0:01:04]}  Ne4 {[%clk 0:01:13]} 25. Bb4 {[%clk 0:01:02]}  Rfe8 {[%clk 0:01:04]} 26. f3 {[%clk 0:01:00]}  Nf6 {[%clk 0:01:04]} 27. Bd2 {[%clk 0:00:58]}  Kh7 {[%clk 0:01:03]} 28. Qe3 {[%clk 0:00:58]}  Rg8 {[%clk 0:00:32]} 29. Rh4 {[%clk 0:00:56]}  Nd5 {[%clk 0:00:28]} 30. Qe2 {[%clk 0:00:54]}  b6 {[%clk 0:00:16]} 31. a3 {[%clk 0:00:54]}  c5 {[%clk 0:00:16]} 32. dxc5 {[%clk 0:00:54]}  bxc5 {[%clk 0:00:17]} 33. Rhg4 {[%clk 0:00:54]}  Rd7 {[%clk 0:00:12]} 34. Qg2 {[%clk 0:00:53]}  Qf6 {[%clk 0:00:10]} 35. Qe2 {[%clk 0:00:45]}  Rb7 {[%clk 0:00:10]} 36. Bc1 {[%clk 0:00:45]}  Kh8 {[%clk 0:00:08]} 37. Qc2 {[%clk 0:00:44]}  Rc7 {[%clk 0:00:03]} 38. Qd2 {[%clk 0:00:42]}  Rgc8 {[%clk 0:00:02]} 39. Rxg7 {[%clk 0:00:39]}  Qxg7 {[%clk 0:00:02]} 40. Rxg7 {[%clk 0:00:39]}  Kxg7 {[%clk 0:00:03]} 41. Qxh6+ {[%clk 0:00:40]}  Kg8 {[%clk 0:00:04]} 42. Qg5+ {[%clk 0:00:40]}  Kf8 {[%clk 0:00:04]} 43. h6 {[%clk 0:00:40]}  Ke8 {[%clk 0:00:05]} 44. h7 {[%clk 0:00:39]}  Kd7 {[%clk 0:00:06]} 45. Bf4 {[%clk 0:00:36]}  Nxf4 {[%clk 0:00:05]} 46. Qxf4 {[%clk 0:00:37]}  Rb7 {[%clk 0:00:05]} 47. Qf6 {[%clk 0:00:35]}  Kc6 {[%clk 0:00:06]} 48. h8=Q {[%clk 0:00:35]}  Rxh8 {[%clk 0:00:05]} 49. Qxh8 {[%clk 0:00:36]}  Rd7 {[%clk 0:00:05]} 50. Qe5 {[%clk 0:00:34]}  Rd5 {[%clk 0:00:04]} 51. Qe4 {[%clk 0:00:34]}  Kd6 {[%clk 0:00:05]} 52. Kb1 {[%clk 0:00:33]}  f5 {[%clk 0:00:05]} 53. Qf4+ {[%clk 0:00:33]}  Kc6 {[%clk 0:00:04]} 54. Qb8 {[%clk 0:00:33]}  Rd7 {[%clk 0:00:04]} 55. Qc8+ {[%clk 0:00:32]}  Kd6 {[%clk 0:00:04]} 56. f4 {[%clk 0:00:32]}  Rc7 {[%clk 0:00:03]} 57. Qd8+ {[%clk 0:00:30]}  Rd7 {[%clk 0:00:04]} 58. Qb8+ {[%clk 0:00:31]}  Kd5 {[%clk 0:00:04]} 59. Qe5+ {[%clk 0:00:28]}  Kc6 {[%clk 0:00:03]} 60. Qxe6+ {[%clk 0:00:29]} 1-0


[Site "https://www.chess.com"]

[Event "Titled Tuesday Blitz December 20 Early 2022"]
[White "Nakamura, Hikaru"]
[Black "VincentKeymer"]
[WhiteFideId "2016192"]
[WhiteElo "2775"]
[BlackElo "2980"]
[Result "1-0"]
[Round "05"]
[TimeControl "180+2"]
[Date "2022.12.20"]
[WhiteClock "0:00:20"]
[BlackClock "0:00:02"]

1. g3 {[%clk 0:03:00]}  d5 {[%clk 0:02:59]} 2. Nf3 {[%clk 0:02:59]}  Nf6 {[%clk 0:02:59]} 3. Bg2 {[%clk 0:02:58]}  c5 {[%clk 0:02:59]} 4. O-O {[%clk 0:02:54]}  e6 {[%clk 0:02:59]} 5. c4 {[%clk 0:02:51]}  d4 {[%clk 0:02:59]} 6. e3 {[%clk 0:02:49]}  Nc6 {[%clk 0:02:59]} 7. Re1 {[%clk 0:02:47]}  Bd6 {[%clk 0:02:48]} 8. d3 {[%clk 0:02:45]}  h6 {[%clk 0:02:47]} 9. e4 {[%clk 0:02:38]}  e5 {[%clk 0:02:46]} 10. Nh4 {[%clk 0:02:39]}  Ne7 {[%clk 0:02:26]} 11. f4 {[%clk 0:02:37]}  Bg4 {[%clk 0:02:23]} 12. Bf3 {[%clk 0:02:30]}  Bd7 {[%clk 0:02:19]} 13. Nd2 {[%clk 0:02:26]}  Qc7 {[%clk 0:02:18]} 14. f5 {[%clk 0:02:18]}  a6 {[%clk 0:02:03]} 15. a3 {[%clk 0:02:15]}  b5 {[%clk 0:02:02]} 16. b3 {[%clk 0:02:15]}  Rb8 {[%clk 0:01:58]} 17. g4 {[%clk 0:02:12]}  Nc6 {[%clk 0:01:56]} 18. h3 {[%clk 0:02:05]}  Qd8 {[%clk 0:01:50]} 19. Ng2 {[%clk 0:02:05]}  Nh7 {[%clk 0:01:45]} 20. Be2 {[%clk 0:02:00]}  Be7 {[%clk 0:01:44]} 21. Rf1 {[%clk 0:01:57]}  Bg5 {[%clk 0:01:35]} 22. Qc2 {[%clk 0:01:55]}  Qe7 {[%clk 0:01:28]} 23. Kh2 {[%clk 0:01:55]}  h5 {[%clk 0:01:26]} 24. gxh5 {[%clk 0:01:49]}  Nf6 {[%clk 0:01:25]} 25. cxb5 {[%clk 0:01:46]}  axb5 {[%clk 0:01:24]} 26. Nf3 {[%clk 0:01:47]}  Bh6 {[%clk 0:00:53]} 27. Bxh6 {[%clk 0:01:46]}  Rxh6 {[%clk 0:00:54]} 28. Rac1 {[%clk 0:01:45]}  c4 {[%clk 0:00:48]} 29. bxc4 {[%clk 0:01:45]}  b4 {[%clk 0:00:49]} 30. axb4 {[%clk 0:01:42]}  Nxb4 {[%clk 0:00:49]} 31. Qd2 {[%clk 0:01:43]}  Nc6 {[%clk 0:00:48]} 32. Rb1 {[%clk 0:01:41]}  Rxh5 {[%clk 0:00:42]} 33. Rxb8+ {[%clk 0:01:36]}  Nxb8 {[%clk 0:00:42]} 34. Ra1 {[%clk 0:01:36]}  Qd6 {[%clk 0:00:31]} 35. c5 {[%clk 0:01:12]}  Qc7 {[%clk 0:00:31]} 36. Qb4 {[%clk 0:01:12]}  Bxf5 {[%clk 0:00:24]} 37. Ra8 {[%clk 0:01:06]}  Nd7 {[%clk 0:00:20]} 38. Nfh4 {[%clk 0:01:00]}  Rxh4 {[%clk 0:00:14]} 39. Nxh4 {[%clk 0:01:00]}  Be6 {[%clk 0:00:15]} 40. Bg4 {[%clk 0:00:55]}  Bxg4 {[%clk 0:00:12]} 41. hxg4 {[%clk 0:00:56]}  Qd8 {[%clk 0:00:10]} 42. Nf3 {[%clk 0:00:53]}  Qc7 {[%clk 0:00:10]} 43. Kg2 {[%clk 0:00:42]}  f6 {[%clk 0:00:10]} 44. g5 {[%clk 0:00:42]}  Kf7 {[%clk 0:00:10]} 45. Qc4+ {[%clk 0:00:41]}  Ke7 {[%clk 0:00:09]} 46. g6 {[%clk 0:00:38]}  Qc6 {[%clk 0:00:05]} 47. Qd5 {[%clk 0:00:19]}  f5 {[%clk 0:00:02]} 48. Nh4 {[%clk 0:00:18]}  fxe4 {[%clk 0:00:02]} 49. dxe4 {[%clk 0:00:18]}  Kf6 {[%clk 0:00:02]} 50. Qf7+ {[%clk 0:00:17]}  Kg5 {[%clk 0:00:02]} 51. Nf3+ {[%clk 0:00:17]}  Kh6 {[%clk 0:00:02]} 52. Qf5 {[%clk 0:00:17]}  Qxg6+ {[%clk 0:00:02]} 53. Qxg6+ {[%clk 0:00:18]}  Kxg6 {[%clk 0:00:03]} 54. c6 {[%clk 0:00:19]}  Nxc6 {[%clk 0:00:03]} 55. Ra6 {[%clk 0:00:19]}  d3 {[%clk 0:00:01]} 56. Rxc6+ {[%clk 0:00:19]}  Kf7 {[%clk 0:00:02]} 57. Rd6 {[%clk 0:00:20]} 1-0


[Site "https://www.chess.com"]

[Event "Titled Tuesday Blitz December 20 Early 2022"]
[White "OparinGrigoriy"]
[Black "Ball, John D L"]
[BlackFideId "402150"]
[WhiteElo "3013"]
[BlackElo "2230"]
[Result "1-0"]
[Round "05"]
[TimeControl "180+2"]
[Date "2022.12.20"]
[WhiteClock "0:00:10"]
[BlackClock "0:00:04"]

1. d4 {[%clk 0:03:00]}  d5 {[%clk 0:02:59]} 2. c4 {[%clk 0:03:01]}  e6 {[%clk 0:02:58]} 3. Nf3 {[%clk 0:03:01]}  Nf6 {[%clk 0:02:57]} 4. g3 {[%clk 0:03:02]}  c5 {[%clk 0:02:53]} 5. cxd5 {[%clk 0:03:01]}  cxd4 {[%clk 0:02:52]} 6. dxe6 {[%clk 0:03:00]}  Bxe6 {[%clk 0:02:51]} 7. Nxd4 {[%clk 0:02:57]}  Bc5 {[%clk 0:02:50]} 8. e3 {[%clk 0:02:45]}  Bxd4 {[%clk 0:02:50]} 9. Qxd4 {[%clk 0:02:42]}  Qxd4 {[%clk 0:02:49]} 10. exd4 {[%clk 0:02:41]}  Nc6 {[%clk 0:02:47]} 11. Be3 {[%clk 0:02:40]}  O-O-O {[%clk 0:02:47]} 12. Bg2 {[%clk 0:02:32]}  Nxd4 {[%clk 0:02:42]} 13. Na3 {[%clk 0:02:28]}  Bd5 {[%clk 0:02:09]} 14. Bxd5 {[%clk 0:02:17]}  Rxd5 {[%clk 0:02:01]} 15. O-O {[%clk 0:02:17]}  b6 {[%clk 0:01:48]} 16. Kg2 {[%clk 0:01:28]}  Rhd8 {[%clk 0:01:44]} 17. Rfe1 {[%clk 0:01:27]}  Kb7 {[%clk 0:01:42]} 18. Rac1 {[%clk 0:01:25]}  R8d7 {[%clk 0:01:37]} 19. h3 {[%clk 0:01:20]}  h6 {[%clk 0:01:37]} 20. g4 {[%clk 0:00:54]}  Ne6 {[%clk 0:01:18]} 21. Nc4 {[%clk 0:00:41]}  Nc5 {[%clk 0:00:46]} 22. Bxc5 {[%clk 0:00:38]}  Rxc5 {[%clk 0:00:47]} 23. b3 {[%clk 0:00:38]}  Rcd5 {[%clk 0:00:42]} 24. Rc3 {[%clk 0:00:30]}  Rc7 {[%clk 0:00:31]} 25. Rce3 {[%clk 0:00:30]}  Rdd7 {[%clk 0:00:20]} 26. Kg3 {[%clk 0:00:30]}  b5 {[%clk 0:00:17]} 27. Ne5 {[%clk 0:00:29]}  Rd4 {[%clk 0:00:15]} 28. f3 {[%clk 0:00:24]}  Kb6 {[%clk 0:00:14]} 29. h4 {[%clk 0:00:22]}  a5 {[%clk 0:00:14]} 30. R3e2 {[%clk 0:00:17]}  a4 {[%clk 0:00:12]} 31. bxa4 {[%clk 0:00:17]}  Rxa4 {[%clk 0:00:13]} 32. Rb2 {[%clk 0:00:16]}  Rca7 {[%clk 0:00:12]} 33. Reb1 {[%clk 0:00:15]}  R7a5 {[%clk 0:00:13]} 34. Nxf7 {[%clk 0:00:15]}  Rxa2 {[%clk 0:00:13]} 35. Nd6 {[%clk 0:00:16]}  Rxb2 {[%clk 0:00:12]} 36. Rxb2 {[%clk 0:00:16]}  Kc5 {[%clk 0:00:11]} 37. Nf5 {[%clk 0:00:16]}  Ra7 {[%clk 0:00:11]} 38. Rc2+ {[%clk 0:00:15]}  Kb6 {[%clk 0:00:11]} 39. Nd4 {[%clk 0:00:15]}  b4 {[%clk 0:00:10]} 40. Rc6+ {[%clk 0:00:15]}  Ka5 {[%clk 0:00:10]} 41. Rd6 {[%clk 0:00:13]}  Rb7 {[%clk 0:00:05]} 42. g5 {[%clk 0:00:13]}  hxg5 {[%clk 0:00:05]} 43. hxg5 {[%clk 0:00:14]}  Ne8 {[%clk 0:00:05]} 44. Rd5+ {[%clk 0:00:11]}  Ka4 {[%clk 0:00:05]} 45. Rd8 {[%clk 0:00:11]}  Nc7 {[%clk 0:00:05]} 46. Rd7 {[%clk 0:00:11]}  b3 {[%clk 0:00:05]} 47. Nxb3 {[%clk 0:00:11]}  Kxb3 {[%clk 0:00:06]} 48. Rxg7 {[%clk 0:00:11]}  Kc4 {[%clk 0:00:06]} 49. Rd7 {[%clk 0:00:10]}  Kb5 {[%clk 0:00:04]} 50. g6 {[%clk 0:00:11]}  Kb6 {[%clk 0:00:05]} 51. g7 {[%clk 0:00:10]}  Rb8 {[%clk 0:00:04]} 52. f4 {[%clk 0:00:10]}  Ne6 {[%clk 0:00:04]} 53. f5 {[%clk 0:00:11]}  Ng5 {[%clk 0:00:03]} 54. Kf4 {[%clk 0:00:09]}  Nh7 {[%clk 0:00:03]} 55. Rf7 {[%clk 0:00:09]}  Kc6 {[%clk 0:00:03]} 56. f6 {[%clk 0:00:10]}  Kd6 {[%clk 0:00:03]} 57. Kf5 {[%clk 0:00:10]}  Rg8 {[%clk 0:00:03]} 58. Kg6 {[%clk 0:00:10]}  Nxf6 {[%clk 0:00:03]} 59. Kxf6 {[%clk 0:00:10]}  Re8 {[%clk 0:00:03]} 60. Rf8 {[%clk 0:00:10]}  Re6+ {[%clk 0:00:03]} 61. Kg5 {[%clk 0:00:10]}  Re1 {[%clk 0:00:02]} 62. g8=Q {[%clk 0:00:11]}  Rg1+ {[%clk 0:00:03]} 63. Kf5 {[%clk 0:00:10]}  Rf1+ {[%clk 0:00:04]} 64. Ke4 {[%clk 0:00:10]}  Rxf8 {[%clk 0:00:04]} 65. Qxf8+ {[%clk 0:00:10]} 1-0


[Site "https://www.chess.com"]

[Event "Titled Tuesday Blitz December 20 Early 2022"]
[White "Prasad, M.V.S"]
[Black "Linhart, Wolfgang"]
[WhiteFideId "5018790"]
[BlackFideId "4636244"]
[WhiteElo "1945"]
[BlackElo "2114"]
[Result "1-0"]
[Round "05"]
[TimeControl "180+2"]
[Date "2022.12.20"]
[WhiteClock "0:00:44"]
[BlackClock "0:00:05"]

1. e4 {[%clk 0:03:00]}  c5 {[%clk 0:02:59]} 2. Nf3 {[%clk 0:02:59]}  d6 {[%clk 0:02:58]} 3. d4 {[%clk 0:02:58]}  cxd4 {[%clk 0:02:58]} 4. Nxd4 {[%clk 0:02:59]}  Nf6 {[%clk 0:02:58]} 5. Nc3 {[%clk 0:03:00]}  Nc6 {[%clk 0:02:58]} 6. Bc4 {[%clk 0:03:01]}  e6 {[%clk 0:02:58]} 7. Bb3 {[%clk 0:03:00]}  a6 {[%clk 0:02:58]} 8. Be3 {[%clk 0:02:55]}  Qc7 {[%clk 0:02:57]} 9. Qe2 {[%clk 0:02:47]}  b5 {[%clk 0:02:56]} 10. O-O-O {[%clk 0:02:44]}  Na5 {[%clk 0:02:52]} 11. g4 {[%clk 0:02:40]}  Nc4 {[%clk 0:02:51]} 12. g5 {[%clk 0:02:38]}  Nd7 {[%clk 0:02:47]} 13. Ndxb5 {[%clk 0:02:22]}  axb5 {[%clk 0:02:43]} 14. Nxb5 {[%clk 0:02:23]}  Qc6 {[%clk 0:02:29]} 15. Qxc4 {[%clk 0:02:04]}  Ra6 {[%clk 0:02:13]} 16. Nc7+ {[%clk 0:02:02]}  Kd8 {[%clk 0:02:06]} 17. Nxa6 {[%clk 0:01:58]}  Qxa6 {[%clk 0:02:05]} 18. Qxa6 {[%clk 0:01:57]}  Bxa6 {[%clk 0:02:05]} 19. Bf4 {[%clk 0:01:53]}  Kc7 {[%clk 0:02:00]} 20. Rhe1 {[%clk 0:01:52]}  h6 {[%clk 0:01:41]} 21. g6 {[%clk 0:01:46]}  e5 {[%clk 0:01:15]} 22. Be3 {[%clk 0:01:45]}  fxg6 {[%clk 0:01:14]} 23. Bd5 {[%clk 0:01:43]}  Be7 {[%clk 0:01:10]} 24. c4 {[%clk 0:01:36]}  Rd8 {[%clk 0:01:06]} 25. b4 {[%clk 0:01:35]}  Bb7 {[%clk 0:01:00]} 26. Bxb7 {[%clk 0:01:34]}  Kxb7 {[%clk 0:01:00]} 27. Kc2 {[%clk 0:01:28]}  Ra8 {[%clk 0:00:51]} 28. Kb3 {[%clk 0:01:28]}  Nf6 {[%clk 0:00:48]} 29. f3 {[%clk 0:01:28]}  Kc7 {[%clk 0:00:47]} 30. a4 {[%clk 0:01:27]}  Rb8 {[%clk 0:00:45]} 31. b5 {[%clk 0:01:23]}  g5 {[%clk 0:00:40]} 32. a5 {[%clk 0:01:21]}  Nd7 {[%clk 0:00:39]} 33. a6 {[%clk 0:01:17]}  Nb6 {[%clk 0:00:35]} 34. Bxb6+ {[%clk 0:01:15]}  Kxb6 {[%clk 0:00:34]} 35. Rd5 {[%clk 0:01:15]}  Rf8 {[%clk 0:00:28]} 36. Re3 {[%clk 0:01:15]}  h5 {[%clk 0:00:28]} 37. Red3 {[%clk 0:01:07]}  Rf6 {[%clk 0:00:25]} 38. c5+ {[%clk 0:00:57]}  dxc5 {[%clk 0:00:23]} 39. Kc4 {[%clk 0:00:54]}  g4 {[%clk 0:00:20]} 40. Rd7 {[%clk 0:00:48]}  Re6 {[%clk 0:00:14]} 41. Rb7+ {[%clk 0:00:46]}  Ka5 {[%clk 0:00:09]} 42. a7 {[%clk 0:00:46]}  gxf3 {[%clk 0:00:05]} 43. a8=R+ {[%clk 0:00:44]} 1-0


[Site "https://www.chess.com"]